Cogmind - Beta 9.1 *** ADVENTURER MODE // 2019.10.31 @ 19:15:03 // Halloween2019/Abominations Player: sideriver81 Result: Destroyed by Lesser Abomination with Etherial Claws Performance ------------- Evolutions (0) 0 Regions Visited (1) 200 Robots Destroyed (2) 10 Value Destroyed (120) 120 Prototype IDs (0) 0 Alien Tech Used (0) 0 Bonus (0) 0 TOTAL SCORE: 330 Bonus ------- None Cogmind --------- Core Integrity 0/250 Matter 278/300 Energy 125/125 System Corruption 0% Temperature Cool (10) Location -10/Materials Parts ------- Power (1) Light Ion Engine Propulsion (2) Aluminum Leg Aluminum Leg Utility (2) Small Storage Unit Terrain Scanner Weapon (2) Small Laser Light Assault Rifle Inventory (6) Aluminum Leg Small Battery (100) EM Pulse Gun Assault Rifle Peak State ------------ Power Ion Engine Propulsion Wheel Compact Wheel Utility Small Storage Unit Light Armor Plating Weapon Assault Rifle Assault Rifle Inventory Light Ion Engine Aluminum Leg Aluminum Leg Seismic Analyzer EM Pulse Gun Small Laser [Rating: 7] Favorites ----------- Power Ion Engine Engine Ion Engine Propulsion Compact Wheel Leg Aluminum Leg Wheel Compact Wheel Utility Small Storage Unit Device Terrain Scanner Storage Small Storage Unit Protection Light Armor Plating Weapon Assault Rifle Energy Gun Small Laser Ballistic Gun Assault Rifle Build | -11 -10 ------- Run | Scr Mat Slots Evolved . | . . Power . | . . Propulsion . | . . Utility . | . . Weapon . | . . Parts Attached 23 | 6 17 Power 4 | 1 3 Engine 4 | 1 3 Core . | . . Reactor . | . . Propulsion 5 | 2 3 Treads . | . . Leg 2 | . 2 Wheel 3 | 2 1 Hover . | . . Flight . | . . Utility 6 | 1 5 Device 1 | . 1 Storage 1 | 1 . Processor . | . . Hackware . | . . Protection 4 | . 4 Artifact . | . . Weapon 8 | 2 6 Energy Gun 1 | . 1 Energy Cannon . | . . Ballistic Gun 7 | 2 5 Ballistic Cannon . | . . Launcher . | . . Special Weapon . | . . Impact Weapon . | . . Slashing Weapon . | . . Piercing Weapon . | . . Special Melee Weapon . | . . Unidentified Prototypes . | . . Parts Lost 4 | . 4 Power 2 | . 2 Propulsion 1 | . 1 Utility . | . . Weapon 1 | . 1 Highest Loss Streak 2 | . 2 Average Slot Usage (%) 93 | . 93 Engine 12 | . 12 Leg 6 | . 6 Wheel 19 | . 19 Storage 14 | . 14 Protection 11 | . 11 Energy Gun 4 | . 4 Ballistic Gun 22 | . 22 Naked Turns . | . . Heaviest Build 16 | 13 16 Greatest Support 26 | 26 26 Greatest Overweight (x) 2 | . 2 Average Overweight (x) . | . . Largest Inventory Capacity 6 | 6 6 Average Capacity 5 | 4 6 Most Carried 6 | 6 6 Average Carried 5 | 3 5 Final Capacity 6 | 6 6 Final Carried 6 | 6 4 Class Distribution -------------------- 100% | Mutant Dominant Class ---------------- Mutant | -10/Materials Resources | -11 -10 ----------- Run | Scr Mat Matter Collected 492 | 260 232 Remotely . | . . Salvage Created 87 | . 87 Parts 7 | . 7 Haulers Intercepted . | . . Recyclers Shooed . | . . Parts Field Recycled . | . . Retrieved Matter . | . . Parts Self-Destructed . | . . Prevented . | . . Kills | -11 -10 ------- Run | Scr Mat Combat Hostiles Destroyed 2 | . 2 Guns 2 | . 2 Classes Destroyed 1 | . 1 Abomination 2 | . 2 Best Kill Streak 1 | . 1 Combat Bots Only 1 | . 1 Max Kills in Single Turn 1 | . 1 Gunslinging . | . . Exploded . | . . Melee . | . . Uniques/NPCs Destroyed . | . . Combat | -11 -10 -------- Run | Scr Mat Damage Taken 796 | . 796 Core 253 | . 253 Absorbed by Shields . | . . Core Remaining (%) 100 | 100 . Volleys Fired 25 | . 25 Largest 2 | . 2 Hottest 60 | . 60 Shots Fired 47 | . 47 Gun 47 | . 47 Cannon . | . . Launcher . | . . Special . | . . Kinetic 39 | . 39 Thermal 8 | . 8 Explosive . | . . Electromagnetic . | . . Robot Hit Streak 18 | . 18 Robot Miss Streak 9 | . 9 Penetration Max . | . . Secondary Targets . | . . Shots Hit Robots 35 | . 35 Core Hits 13 | . 13 Critical Hits . | . . Critical Kills . | . . Critical Parts Destroyed . | . . Melee Attacks . | . . Impact . | . . Slashing . | . . Piercing . | . . Sneak Attacks . | . . Combat Hostiles . | . . Follow-up Attacks . | . . Damage Inflicted 411 | . 411 Guns 411 | . 411 Cannons . | . . Explosions . | . . Melee . | . . Ramming . | . . Kinetic 321 | . 321 Thermal 90 | . 90 Explosive . | . . Electromagnetic . | . . Impact . | . . Slashing . | . . Piercing . | . . Highest Corruption . | . . Average Corruption . | . . Corruption Purged . | . . Overload Shots . | . . Overflow Damage . | . . Projectiles . | . . Explosions . | . . Melee . | . . Knockbacks . | . . Impact . | . . Kinetic . | . . Secondary . | . . Self-Inflicted Damage . | . . Shots . | . . Rammed . | . . Targets Rammed . | . . Kicked . | . . Crushed . | . . Highest Temperature 290 | . 290 Average Temperature 91 | . 91 Received Heat Transfer 6 | . 6 Siege Activations . | . . Robots Corrupted . | . . Combat Hostiles . | . . Parts Fried . | . . Impact Corruptions . | . . Robots Melted . | . . Combat Hostiles . | . . Parts Melted . | . . Heat Transferred 61 | . 61 Parts Sabotaged . | . . Parts Stolen . | . . Parts Stripped . | . . Power Chain Reactions . | . . Missiles Intercepted . | . . Alert | -11 -10 ------- Run | Scr Mat Peak Influence 21 | . 21 Average Influence 5 | . 6 Maximum Alert Level . | . . Low Security (%) 100 | . . Level 1 . | . . Level 2 . | . . Level 3 . | . . Level 4 . | . . Level 5 . | . . High Security . | . . Max Security . | . . Squads Dispatched 4 | . 4 Investigation 2 | . 2 Extermination . | . . Reinforcement . | . . Assault 2 | . 2 Garrison . | . . Intercept . | . . Construction Impeded . | . . Haulers Reinforced . | . . Stealth | -11 -10 --------- Run | Scr Mat Distress Signals . | . . Communications Jammed . | . . Distress Signals . | . . Times Spotted 14 | . 14 Peak Tracking Total 6 | . 6 Tactical Retreats 3 | . 3 Traps | -11 -10 ------- Run | Scr Mat Traps Triggered . | . . Indirectly . | . . Trap Hack Attempts . | . . Triggered . | . . Disarmed . | . . Reprogrammed . | . . Reused . | . . Traps Extracted . | . . Installed . | . . Triggered . | . . Machines | -11 -10 ---------- Run | Scr Mat Machines Disabled . | . . Max in Single Turn . | . . Machines Sabotaged . | . . Garrisons Compromised . | . . Overloaded Fab Kills . | . . Fab Network Shutdowns . | . . Hacking | -11 -10 --------- Run | Scr Mat Machines Accessed 3 | . 3 Terminals 3 | . 3 Fabricators . | . . Repair Stations . | . . Recycling Units . | . . Scanalyzers . | . . Garrison Access . | . . Total Hacks 10 | . 10 Successful 4 | . 4 Failed 6 | . 6 Catastrophic 1 | . 1 Database Lockouts . | . . Manual . | . . Terminals 10 | . 10 Fabricators . | . . Repair Stations . | . . Recycling Units . | . . Scanalyzers . | . . Garrison Access . | . . Terminal Hacks 4 | . 4 Branch Access Points 1 | . 1 Locate Traps 1 | . 1 Surveillance Status 1 | . 1 Registered Components 1 | . 1 Fabricator Hacks . | . . Repair Station Hacks . | . . Recycling Unit Hacks . | . . Scanalyzer . | . . Garrison Access Hacks . | . . Unauthorized Hacks . | . . Terminals . | . . Fabricators . | . . Repair Stations . | . . Recycling Units . | . . Scanalyzers . | . . Garrison Access . | . . Data Cores Recovered . | . . Used . | . . Hacking Detections 2 | . 2 Full Trace Events . | . . Feedback Events . | . . Feedback Blocked . | . . Robot Schematics Acquired . | . . Robots Built . | . . Matter . | . . Time . | . . Total Robot Build Rating . | . . Part Schematics Acquired . | . . Parts Built . | . . Matter . | . . Time . | . . Total Part Build Rating . | . . Parts Repaired . | . . Time . | . . Parts Recycled . | . . Recycled Matter . | . . Retrieved Matter . | . . Retrieved Components . | . . Parts Scanalyzed . | . . Part Schematics Acquired . | . . Parts Damaged . | . . Bothacking | -11 -10 ------------ Run | Scr Mat Used RIF Installer . | . . Robots Hacked . | . . Non-combat . | . . Combat . | . . Robot Hacks Applied . | . . Relay Couplers Released . | . . Robots Rewired . | . . Allies Hacked . | . . Hacks Repelled . | . . Allies | -11 -10 -------- Run | Scr Mat Total Allies . | . . Largest Group . | . . Highest-Rated Group . | . . Highest-Rated Ally . | . . Total Orders . | . . Ally Attacks . | . . Total Damage . | . . Kills . | . . Allies Corrupted . | . . Allies Melted . | . . Intel | -11 -10 ------- Run | Scr Mat Robot Analysis Total . | . . Derelict Logs Recovered . | . . Drone Launches . | . . Drone Recoveries . | . . Exploration | -11 -10 ------------- Run | Scr Mat Turns Passed 496 | 68 428 Spaces Moved 387 | 64 323 Core 27 | 19 8 Treads . | . . Legs 23 | . 23 Wheels 337 | 45 292 Hover . | . . Flight . | . . Fastest Speed 50 | 50 90 Average Speed 93 | 78 96 Slowest Speed 150 | 90 150 Overloaded Moves . | . . Propulsion Burnouts . | . . Robots Hopped . | . . Cave-ins Triggered . | . . Exploration Rate (%) 27 | 3 52 Regions Visited 1 Branch Regions . Pre-discovered Areas . | . . Known Exits Taken . | . . Unknown Exits Taken 1 | 1 . Scrap Searched . | . . Spaces Dug . | . . Terrain Destroyed . | . . Melee . | . . Projectile . | . . AOE . | . . Actions | -11 -10 --------- Run | Scr Mat Total 476 | 81 395 Wait 8 | . 8 Move 386 | 63 323 Hop . | . . Pick Up 23 | 12 11 Fast Attach 10 | . 10 Attach 11 | 6 5 Detach . | . . Swap 2 | . 2 Drop 11 | . 11 Fire 25 | . 25 Melee . | . . Ram . | . . Kick . | . . Crush . | . . Escape Stasis . | . . Rewire . | . . Trap . | . . Miscellaneous . | . . Route ------- -11/Scrapyard -10/Materials History --------- Turn | Location | Event 9 | -11/Scrapyard | Discovered new exit (range 15) 69 | -11/Scrapyard | Entered Materials 219 | -10/Materials | Discovered new exit (range 13) 253 | -10/Materials | Identified exit to Mines 342 | -10/Materials | Build established: Mutant 380 | -10/Materials | Core integrity fell below 50% 497 | -10/Materials | Core integrity fell below 20% 497 | -10/Materials | Destroyed by Lesser Abomination with Etherial Claws Last Messages --------------- 00479_ Engulfed by violent ripples tearing at the fabric of space. 00483_ Unstable Anomaly suddenly flashes brightly. 00485_ Dropped Lgt. Armor Plating. 00486_ ALERT: Dispatching additional forces to engage threats. 00486_ Acquired Terrain Scanner. 00488_ Warp Anomaly forced to warp away. 00494_ Targeting Computer blinks away. 00494_ Dropped Ion Engine. 00495_ Lgt. Assault Rifle blinks away. 00495_ 44 Matter blinks away. 00495_ Med. Storage Unit blinks away. 00495_ Mni. Grenade Launcher blinks away. 00495_ 2 Matter blinks away. 00495_ Dropped Heat Sink. 00496_ Core Shielding blinks away. 00496_ Ion Engine springs to life within a quantum being. 00497_ 32 Matter blinks away. 00497_ Seismic Analyzer blinks away. 00497_ Lesser Abomination absorbs Seismic Analyzer, Core Shielding, Terrain Scan Processor, Ion Engine. Map ----- +----------------------------------------------------+ | #????????#?????????###########???????????????? | | ##?????????????????# + #???????????????? | | #?????????????????# # #???????????????? | | ####???????????????# #[ ! ! #???????????????? | | ! #???????????????# !+ ! #???????????????? | | !!#? "????????## [# #???????????????? | | ## ??????## % #???????????????? | | ## ???????# # ####+#############???? | | ]## > "??????# ^ #???? | | ] #? ???????# #???? | | ####? ???###### """ #???? | | #???? "Y """ #???? | | #????# % """ """ ##########???? | | ###### #### # """ #????????????? | | ??### #########????? | | % ????# #????? | | ???############# # #????? | | ###### # ####???#^ ^^ # # #????? | | # " % #???# """"" # #????? | | """ "! " % #?### """"" #????? | | """ " ### # """" #????? | | """ " " % [|; ; % % ###??? | | """ # # % ||[ ;;;!;;;; # #??? | | # # | ;;;;;;;% #??? | | # # n%;! %![% T #??? | | #% # ;;;;;A@;[ #??? | | # #######;;;; !############ #??? | | ###### #?????###########??????????###+####?? | | ?????# *#??????????????????????????# T #?? | | ?????# !%#??????????????????????????# #?? | | ?????# !#??????????????????????????# """ #?? | | ????? #??????????????????????????# """ #?? | | ????? #??????????????????????????# """ #?? | | ????? #??????????????????????????# #?? | | ????? ????????????????????^?????########?? | | ????? ??????????? ????????????????????????? | | ?????????????????????????????????????????????? | | ?????????????????????????????????????????????? | | ?????????????????????????????????????????????? | | ?????????????????????????????????????????????? | | ?????????????????????????????????????????????? | | ?????????????????????????????????????????????? | | ?????????????????????????????????????????????? | | ?????????????????????????????????????????????? | | ?????????????????????????????????????????????? | | ?????????????????????????????????????????????? | | | | | | | | | +----------------------------------------------------+ Best States ------------- Heat Dissipation 25 Energy Generation 10 Energy Capacity 250 Matter Stores 300 Matter Capacity 300 Sight Range 16 Terrain Scan Range 14 Terrain Scan Density 10 Armor Coverage 150 Resistance: KI 20 Resistance: TH 20 Resistance: EX 20 Resistance: EM 20 Resistance: I 20 Resistance: S 20 Resistance: P 20 Core Shielding 20 Evasion (%) 50 Item Schematics ----------------- None Robot Schematics ------------------ None Fabricated ------------ Nothing Alien Tech Used ----------------- None Achievements -------------- None Challenges ------------ None Game ------ Seed ArcFlakBroadsword Manual? 0 Play Time 00:13:13 Cumulative 13.7 hours Start 2019.10.31 @ 19:00:24 End 2019.10.31 @ 19:15:03 Sessions 1 Manual Loads 0 Difficulty Adventurer Special Mode Halloween2019/Abominations Game No. 7 Rogue -7 Adventurer 7 Explorer 0 Win Type - Total 0 Types 0/0/0/0/0/0/0 Lore% 6 Gallery% 17 Achievement% 13 Wizard Run 0 Options --------- ASCII 0 Keyboard 0 Movement Numpad Keybinds 0 Fullscreen 0 Font 20/Terminus Map View 76x50 Tactical HUD 1 Map Filters NONE Filters NONE Steam 1 RUN: 6c950d2f-76e4-4e35-9aaf-418f3263d2b2